[Event "Live Chess"]
[Site "Chess.com"]
[Date "2023.05.20"]
[Round "-"]
[White "KeithArkell"]
[Black "friarnator"]
[Result "1-0"]
[WhiteElo "2612"]
[BlackElo "1991"]
[TimeControl "300"]
[EndTime "13:01:07 PDT"]
[Termination "KeithArkell won by resignation"]

1. d4 {[%clk 0:04:57.7]} 1... Nf6 {[%clk 0:04:57.3]} 2. Nf3 {[%clk 0:04:56.9]}
2... e6 {[%clk 0:04:56.5]} 3. c4 {[%clk 0:04:56.2]} 3... d5 {[%clk 0:04:55.8]}
4. cxd5 {[%clk 0:04:55.4]} 4... exd5 {[%clk 0:04:55.7]} 5. Nc3 {[%clk
0:04:54.9]} 5... c6 {[%clk 0:04:54.7]} 6. Qc2 {[%clk 0:04:53.8]} 6... Be7 {[%clk
0:04:53.5]} 7. Bg5 {[%clk 0:04:52.7]} 7... O-O {[%clk 0:04:51.8]} 8. e3 {[%clk
0:04:50.2]} 8... Nbd7 {[%clk 0:04:47]} 9. Bd3 {[%clk 0:04:49]} 9... h6 {[%clk
0:04:39.6]} 10. Bh4 {[%clk 0:04:47.4]} 10... Re8 {[%clk 0:04:37]} 11. O-O {[%clk
0:04:46.6]} 11... Nf8 {[%clk 0:04:34.3]} 12. Ne5 {[%clk 0:04:45.7]} 12... N6d7
{[%clk 0:04:20.7]} 13. Bxe7 {[%clk 0:04:44.7]} 13... Qxe7 {[%clk 0:04:17.7]} 14.
Nxd7 {[%clk 0:04:42.6]} 14... Bxd7 {[%clk 0:04:11.9]} 15. b4 {[%clk 0:04:41.2]}
15... a6 {[%clk 0:04:04]} 16. a4 {[%clk 0:04:39.2]} 16... Bg4 {[%clk 0:03:51.4]}
17. b5 {[%clk 0:04:35.9]} 17... Bh5 {[%clk 0:03:35.7]} 18. bxa6 {[%clk
0:04:32.8]} 18... bxa6 {[%clk 0:03:33.6]} 19. a5 {[%clk 0:04:32]} 19... Bg6
{[%clk 0:03:27.4]} 20. Na4 {[%clk 0:04:30.9]} 20... Bxd3 {[%clk 0:03:14.4]} 21.
Qxd3 {[%clk 0:04:29.7]} 21... Ne6 {[%clk 0:03:07.5]} 22. Rfc1 {[%clk 0:04:27.1]}
22... Rec8 {[%clk 0:02:55.7]} 23. Nb6 {[%clk 0:04:25.9]} 23... Qa7 {[%clk
0:02:32.8]} 24. Nxc8 {[%clk 0:04:23.1]} 24... Rxc8 {[%clk 0:02:31.1]} 25. Rab1
{[%clk 0:04:21.7]} 25... c5 {[%clk 0:02:13.1]} 26. dxc5 {[%clk 0:04:20.7]} 26...
Nxc5 {[%clk 0:02:11.8]} 27. Qxd5 {[%clk 0:04:18.7]} 1-0

[Event "Live Chess"]
[Site "Chess.com"]
[Date "2023.05.20"]
[Round "-"]
[White "siddu198"]
[Black "Jonmill"]
[Result "0-1"]
[WhiteElo "1603"]
[BlackElo "1253"]
[TimeControl "300"]
[EndTime "13:01:25 PDT"]
[Termination "Jonmill won by resignation"]

1. e4 {[%clk 0:04:58.9]} 1... d6 {[%clk 0:04:56.8]} 2. d4 {[%clk 0:04:57.9]}
2... Nf6 {[%clk 0:04:56.2]} 3. Nc3 {[%clk 0:04:54.8]} 3... c6 {[%clk 0:04:55.2]}
4. f4 {[%clk 0:04:54.3]} 4... Qa5 {[%clk 0:04:53.5]} 5. Nf3 {[%clk 0:04:52.7]}
5... Nxe4 {[%clk 0:04:51.7]} 6. Bd2 {[%clk 0:04:49.6]} 6... Nxd2 {[%clk
0:04:50.5]} 7. Qxd2 {[%clk 0:04:49.5]} 7... Bg4 {[%clk 0:04:46.6]} 8. Be2 {[%clk
0:04:48.4]} 8... Nd7 {[%clk 0:04:33.5]} 9. h3 {[%clk 0:04:45.7]} 9... Bxf3
{[%clk 0:04:27.6]} 10. Bxf3 {[%clk 0:04:44.6]} 10... Nf6 {[%clk 0:04:11]} 11.
O-O {[%clk 0:04:39.3]} 11... O-O-O {[%clk 0:04:10.1]} 12. Bg4+ {[%clk
0:04:36.1]} 12... Kb8 {[%clk 0:04:07.6]} 13. a3 {[%clk 0:04:32]} 13... Nxg4
{[%clk 0:04:06.5]} 14. hxg4 {[%clk 0:04:30.9]} 14... e5 {[%clk 0:03:54.6]} 15.
b4 {[%clk 0:04:26.3]} 15... Qc7 {[%clk 0:03:49.6]} 16. dxe5 {[%clk 0:04:06.3]}
16... dxe5 {[%clk 0:03:48.5]} 17. Qf2 {[%clk 0:04:04.5]} 17... exf4 {[%clk
0:03:44.5]} 18. Qxf4 {[%clk 0:04:03.7]} 18... f6 {[%clk 0:03:38.9]} 19. Qxc7+
{[%clk 0:03:54.5]} 19... Kxc7 {[%clk 0:03:37.4]} 20. Rae1 {[%clk 0:03:54]} 20...
Bd6 {[%clk 0:03:31.7]} 21. Ne4 {[%clk 0:03:50.8]} 21... Be5 {[%clk 0:03:23.2]}
22. g5 {[%clk 0:03:42.6]} 22... fxg5 {[%clk 0:03:03.7]} 23. Rf7+ {[%clk
0:03:33.4]} 23... Kc8 {[%clk 0:02:57.8]} 24. Nc5 {[%clk 0:03:10.9]} 24... Bd4+
{[%clk 0:02:54.1]} 25. Kh1 {[%clk 0:03:07.8]} 25... Bxc5 {[%clk 0:02:52.9]} 26.
bxc5 {[%clk 0:03:07]} 26... Rd7 {[%clk 0:02:47.9]} 27. Ree7 {[%clk 0:03:04.9]}
27... Rxe7 {[%clk 0:02:45.5]} 28. Rxe7 {[%clk 0:03:04.5]} 28... Rg8 {[%clk
0:02:36.8]} 29. Kh2 {[%clk 0:03:03.4]} 29... g4 {[%clk 0:02:35.9]} 30. Kg3
{[%clk 0:03:02]} 30... h5 {[%clk 0:02:34.7]} 31. Kh4 {[%clk 0:03:01.6]} 31... b6
{[%clk 0:02:21.1]} 32. cxb6 {[%clk 0:02:57]} 32... axb6 {[%clk 0:02:20]} 33.
Kxh5 {[%clk 0:02:54]} 33... Rh8+ {[%clk 0:02:08.7]} 34. Kxg4 {[%clk 0:02:49.7]}
34... Rh2 {[%clk 0:02:07.8]} 35. Kg3 {[%clk 0:02:48]} 35... Rh1 {[%clk
0:02:06.8]} 36. Rxg7 {[%clk 0:02:28.5]} 36... Rc1 {[%clk 0:02:05.8]} 37. Kf4
{[%clk 0:02:28]} 37... Rxc2 {[%clk 0:02:04.8]} 38. g4 {[%clk 0:02:21.4]} 38...
Rc3 {[%clk 0:01:59.7]} 39. g5 {[%clk 0:02:18]} 39... Rxa3 {[%clk 0:01:58.7]} 40.
g6 {[%clk 0:02:14.8]} 40... Ra1 {[%clk 0:01:57.8]} 41. Ke5 {[%clk 0:02:13]}
41... Rg1 {[%clk 0:01:56]} 42. Kd6 {[%clk 0:02:08]} 42... c5 {[%clk 0:01:54.1]}
43. Kc6 {[%clk 0:02:05.9]} 43... Kd8 {[%clk 0:01:49.6]} 44. Kxb6 {[%clk
0:01:59.1]} 44... c4 {[%clk 0:01:46.4]} 45. Kc6 {[%clk 0:01:49.7]} 45... c3
{[%clk 0:01:43.9]} 46. Kd6 {[%clk 0:01:48.3]} 46... Kc8 {[%clk 0:01:30.8]} 47.
Rg8+ {[%clk 0:01:43.2]} 47... Kb7 {[%clk 0:01:29.6]} 48. Rg7+ {[%clk 0:01:30.7]}
48... Kb6 {[%clk 0:01:28.5]} 49. Rg8 {[%clk 0:01:15.6]} 49... c2 {[%clk
0:01:22.2]} 50. Rc8 {[%clk 0:01:13]} 50... Rxg6+ {[%clk 0:01:20.9]} 51. Ke5
{[%clk 0:01:12.9]} 51... Rc6 {[%clk 0:01:17.3]} 52. Rb8+ {[%clk 0:01:01.3]}
52... Kc5 {[%clk 0:01:16.1]} 0-1

[Event "Live Chess"]
[Site "Chess.com"]
[Date "2023.05.20"]
[Round "-"]
[White "MrBlond89"]
[Black "SavagePawn7"]
[Result "1-0"]
[WhiteElo "1319"]
[BlackElo "793"]
[TimeControl "300"]
[EndTime "13:01:44 PDT"]
[Termination "MrBlond89 won by resignation"]

1. e4 {[%clk 0:04:59]} 1... d5 {[%clk 0:04:56.7]} 2. exd5 {[%clk 0:04:57.3]}
2... Nf6 {[%clk 0:04:55.5]} 3. d4 {[%clk 0:04:54.4]} 3... Nxd5 {[%clk
0:04:53.7]} 4. Nf3 {[%clk 0:04:47.3]} 4... Bg4 {[%clk 0:04:50.3]} 5. Nc3 {[%clk
0:04:44.7]} 5... Nxc3 {[%clk 0:04:47]} 6. bxc3 {[%clk 0:04:43.8]} 6... e6 {[%clk
0:04:40.4]} 7. Be2 {[%clk 0:04:42.4]} 7... Bd6 {[%clk 0:04:29.5]} 8. h3 {[%clk
0:04:40.5]} 8... Bxf3 {[%clk 0:04:23]} 9. Bxf3 {[%clk 0:04:40.4]} 9... O-O
{[%clk 0:04:19.6]} 10. Bxb7 {[%clk 0:04:39.2]} 10... Be7 {[%clk 0:03:56.6]} 11.
Bxa8 {[%clk 0:04:36.4]} 11... Nc6 {[%clk 0:03:53.6]} 12. Bxc6 {[%clk 0:04:35]}
1-0

[Event "Live Chess"]
[Site "Chess.com"]
[Date "2023.05.20"]
[Round "-"]
[White "JanMur7"]
[Black "FlyingChessKestrel13"]
[Result "0-1"]
[WhiteElo "1943"]
[BlackElo "2129"]
[TimeControl "300"]
[EndTime "13:01:56 PDT"]
[Termination "FlyingChessKestrel13 won by resignation"]

1. e4 {[%clk 0:04:56.9]} 1... e6 {[%clk 0:04:59.4]} 2. d4 {[%clk 0:04:55.6]}
2... d5 {[%clk 0:04:58.8]} 3. exd5 {[%clk 0:04:55.5]} 3... exd5 {[%clk
0:04:57.8]} 4. Bd3 {[%clk 0:04:55]} 4... c6 {[%clk 0:04:56.2]} 5. Ne2 {[%clk
0:04:53.9]} 5... Nf6 {[%clk 0:04:55.8]} 6. O-O {[%clk 0:04:53.2]} 6... Bd6
{[%clk 0:04:55.1]} 7. Bf4 {[%clk 0:04:52.3]} 7... O-O {[%clk 0:04:54]} 8. c3
{[%clk 0:04:50.5]} 8... Ne4 {[%clk 0:04:51.6]} 9. f3 {[%clk 0:04:37.1]} 9...
Bxf4 {[%clk 0:04:47.7]} 10. Nxf4 {[%clk 0:04:32.4]} 10... Nd6 {[%clk 0:04:46.4]}
11. Qc2 {[%clk 0:04:29.1]} 11... h6 {[%clk 0:04:43.2]} 12. Nd2 {[%clk
0:04:27.2]} 12... Qg5 {[%clk 0:04:41.2]} 13. g3 {[%clk 0:04:22.7]} 13... Nf5
{[%clk 0:04:34.2]} 14. Bxf5 {[%clk 0:04:15.2]} 14... Bxf5 {[%clk 0:04:32.3]} 15.
Qb3 {[%clk 0:04:14.5]} 15... b6 {[%clk 0:04:26.3]} 16. Rfe1 {[%clk 0:04:09]}
16... Nd7 {[%clk 0:04:25]} 17. Qa4 {[%clk 0:03:59.3]} 17... Qf6 {[%clk
0:04:18.1]} 18. Re2 {[%clk 0:03:51.1]} 18... a5 {[%clk 0:04:04.4]} 19. Rae1
{[%clk 0:03:44.9]} 19... b5 {[%clk 0:04:03.3]} 20. Qa3 {[%clk 0:03:42.2]} 20...
Rfb8 {[%clk 0:04:00.3]} 21. Qe7 {[%clk 0:03:37.2]} 21... b4 {[%clk 0:03:54.4]}
22. Qxf6 {[%clk 0:03:30.3]} 22... Nxf6 {[%clk 0:03:53.2]} 23. c4 {[%clk
0:03:28.7]} 23... g5 {[%clk 0:03:42]} 24. Re5 {[%clk 0:03:16.3]} 24... Bh7
{[%clk 0:03:34.1]} 25. Ng2 {[%clk 0:03:07.6]} 25... Rd8 {[%clk 0:03:26.1]} 26.
c5 {[%clk 0:02:59.3]} 26... Re8 {[%clk 0:03:13]} 27. Rxe8+ {[%clk 0:02:48]}
27... Rxe8 {[%clk 0:03:09.6]} 28. Rxe8+ {[%clk 0:02:46.6]} 28... Nxe8 {[%clk
0:03:09]} 29. Nb3 {[%clk 0:02:45.4]} 29... a4 {[%clk 0:03:03.9]} 30. Na5 {[%clk
0:02:44.2]} 30... Bb1 {[%clk 0:03:00.3]} 31. Nxc6 {[%clk 0:02:42.2]} 31... Bxa2
{[%clk 0:02:58]} 32. Nxb4 {[%clk 0:02:37.5]} 32... Bc4 {[%clk 0:02:56.7]} 33.
Ne3 {[%clk 0:02:35.6]} 33... Nc7 {[%clk 0:02:56.3]} 34. Nxc4 {[%clk 0:02:33.8]}
34... dxc4 {[%clk 0:02:55.8]} 35. d5 {[%clk 0:02:33]} 35... Kf8 {[%clk
0:02:52.8]} 36. d6 {[%clk 0:02:31.5]} 36... Nb5 {[%clk 0:02:51]} 37. Nd5 {[%clk
0:02:01.8]} 37... Ke8 {[%clk 0:02:37.2]} 38. Nf6+ {[%clk 0:01:41.1]} 38... Kd8
{[%clk 0:02:35.4]} 39. Nd5 {[%clk 0:01:29.9]} 39... c3 {[%clk 0:02:28.4]} 40.
bxc3 {[%clk 0:01:26.2]} 40... a3 {[%clk 0:02:27.5]} 41. Nb4 {[%clk 0:01:21.1]}
41... Nxc3 {[%clk 0:02:26.1]} 42. Kf2 {[%clk 0:00:48.5]} 42... a2 {[%clk
0:02:24]} 43. Nxa2 {[%clk 0:00:47.2]} 43... Nxa2 {[%clk 0:02:23.2]} 44. Ke3
{[%clk 0:00:46.6]} 44... Kd7 {[%clk 0:02:21.9]} 45. Kd4 {[%clk 0:00:44.6]} 45...
Nb4 {[%clk 0:02:17.4]} 46. Ke5 {[%clk 0:00:40.8]} 46... Nc6+ {[%clk 0:02:03.6]}
47. Kf6 {[%clk 0:00:38.6]} 47... Nd8 {[%clk 0:02:03.2]} 48. g4 {[%clk
0:00:34.2]} 48... Kc6 {[%clk 0:02:00.3]} 49. Ke7 {[%clk 0:00:22.9]} 49... Nb7
{[%clk 0:01:38.4]} 50. d7 {[%clk 0:00:20]} 50... Kc7 {[%clk 0:01:37.9]} 51. c6
{[%clk 0:00:17.8]} 51... Nd8 {[%clk 0:01:36.4]} 52. Ke8 {[%clk 0:00:14]} 52...
Nxc6 {[%clk 0:01:34]} 53. Kxf7 {[%clk 0:00:13.2]} 53... Kxd7 {[%clk 0:01:32.9]}
54. Kg6 {[%clk 0:00:13.1]} 54... Nd4 {[%clk 0:01:29.7]} 55. Kxh6 {[%clk
0:00:10.7]} 55... Nxf3 {[%clk 0:01:28.5]} 56. Kh5 {[%clk 0:00:09.1]} 56... Ke6
{[%clk 0:01:27.5]} 57. h3 {[%clk 0:00:08.6]} 57... Ke5 {[%clk 0:01:25.1]} 58.
Kg6 {[%clk 0:00:07.2]} 58... Kf4 {[%clk 0:01:24.2]} 59. Kh5 {[%clk 0:00:07.1]}
59... Kg3 {[%clk 0:01:22.9]} 60. h4 {[%clk 0:00:06.5]} 60... gxh4 {[%clk
0:01:20.9]} 61. g5 {[%clk 0:00:06.4]} 0-1

[Event "Live Chess"]
[Site "Chess.com"]
[Date "2023.05.20"]
[Round "-"]
[White "Ayush_prahlad_Gupta"]
[Black "OceanFloater"]
[Result "0-1"]
[WhiteElo "1764"]
[BlackElo "998"]
[TimeControl "300"]
[EndTime "13:02:05 PDT"]
[Termination "OceanFloater won by checkmate"]

1. f4 {[%clk 0:04:56.7]} 1... c6 {[%clk 0:04:59.2]} 2. Nf3 {[%clk 0:04:54.9]}
2... d5 {[%clk 0:04:58.7]} 3. e4 {[%clk 0:04:54.8]} 3... dxe4 {[%clk 0:04:57.3]}
4. Ng5 {[%clk 0:04:52.9]} 4... h6 {[%clk 0:04:42.6]} 5. Nxe4 {[%clk 0:04:50.7]}
5... Nf6 {[%clk 0:04:33.2]} 6. Nxf6+ {[%clk 0:04:47.5]} 6... exf6 {[%clk
0:04:32.3]} 7. Qe2+ {[%clk 0:04:47.1]} 7... Be7 {[%clk 0:04:30.7]} 8. d3 {[%clk
0:04:47]} 8... O-O {[%clk 0:04:29.3]} 9. Be3 {[%clk 0:04:46.9]} 9... Re8 {[%clk
0:04:28.2]} 10. Nc3 {[%clk 0:04:46.6]} 10... Bc5 {[%clk 0:04:27]} 11. O-O-O
{[%clk 0:04:46.5]} 11... Bxe3+ {[%clk 0:04:24.9]} 12. Kb1 {[%clk 0:04:45.1]}
12... Bb6 {[%clk 0:04:23.3]} 13. Qf3 {[%clk 0:04:42.6]} 13... Nd7 {[%clk
0:04:17.2]} 14. g4 {[%clk 0:04:40.9]} 14... Re3 {[%clk 0:04:12.8]} 15. Qg2
{[%clk 0:04:38.1]} 15... Nf8 {[%clk 0:04:08.8]} 16. Ne4 {[%clk 0:04:35.2]} 16...
Ng6 {[%clk 0:04:04]} 17. g5 {[%clk 0:04:33.1]} 17... Nxf4 {[%clk 0:04:02.2]} 18.
Qg4 {[%clk 0:04:29.9]} 18... Bxg4 {[%clk 0:03:57.6]} 19. Rc1 {[%clk 0:04:27]}
19... hxg5 {[%clk 0:03:51.3]} 20. h4 {[%clk 0:04:25.4]} 20... Ne2 {[%clk
0:03:49.5]} 21. Bxe2 {[%clk 0:04:23.2]} 21... Rxe2 {[%clk 0:03:47.1]} 22. hxg5
{[%clk 0:04:22.9]} 22... Be3 {[%clk 0:03:38.5]} 23. Rcf1 {[%clk 0:04:19.7]}
23... fxg5 {[%clk 0:03:20.1]} 24. Ng3 {[%clk 0:04:11.6]} 24... Rf2 {[%clk
0:03:15.5]} 25. Re1 {[%clk 0:04:10]} 25... Qe7 {[%clk 0:03:10.5]} 26. Ne4 {[%clk
0:04:08.7]} 26... Bf3 {[%clk 0:03:02.9]} 27. Rh3 {[%clk 0:04:01.4]} 27... g4
{[%clk 0:02:58]} 28. Rg3 {[%clk 0:03:53.6]} 28... Rg2 {[%clk 0:02:53.5]} 29.
Rxe3 {[%clk 0:03:41.5]} 29... Rxg3 {[%clk 0:02:50.5]} 30. Nxg3 {[%clk
0:03:41.4]} 30... Qxe3 {[%clk 0:02:49.1]} 31. a3 {[%clk 0:03:33.1]} 31... Qg1+
{[%clk 0:02:47.9]} 32. Ka2 {[%clk 0:03:30.6]} 32... Qxg3 {[%clk 0:02:47.6]} 33.
b3 {[%clk 0:03:30.2]} 33... Qf2 {[%clk 0:02:45.3]} 34. a4 {[%clk 0:03:28.3]}
34... Bd5 {[%clk 0:02:43.6]} 35. Ka3 {[%clk 0:03:28.2]} 35... Qxc2 {[%clk
0:02:42.2]} 36. Kb4 {[%clk 0:03:26.9]} 36... Qxb3+ {[%clk 0:02:41.4]} 37. Kc5
{[%clk 0:03:25.4]} 37... Qc3+ {[%clk 0:02:33.8]} 38. Kd6 {[%clk 0:03:23.9]}
38... Rd8+ {[%clk 0:02:31.7]} 39. Kc7 {[%clk 0:03:22.4]} 39... Qa5+ {[%clk
0:02:30.7]} 40. Kxb7 {[%clk 0:03:19.4]} 40... Rd7+ {[%clk 0:02:28.8]} 41. Ka8
{[%clk 0:03:17]} 41... Qd8# {[%clk 0:02:28.4]} 0-1

[Event "Live Chess"]
[Site "Chess.com"]
[Date "2023.05.20"]
[Round "-"]
[White "DerbyKnight"]
[Black "Man-Del-Brot"]
[Result "1-0"]
[WhiteElo "1543"]
[BlackElo "1074"]
[TimeControl "300"]
[EndTime "13:02:08 PDT"]
[Termination "DerbyKnight won by checkmate"]

1. e4 {[%clk 0:04:56.7]} 1... e5 {[%clk 0:04:58]} 2. d4 {[%clk 0:04:54.7]} 2...
exd4 {[%clk 0:04:56.2]} 3. c3 {[%clk 0:04:54.2]} 3... dxc3 {[%clk 0:04:54.2]} 4.
Bc4 {[%clk 0:04:53.7]} 4... Nf6 {[%clk 0:04:51.4]} 5. Nxc3 {[%clk 0:04:49.7]}
5... Nc6 {[%clk 0:04:49.5]} 6. Nf3 {[%clk 0:04:44.2]} 6... Bb4 {[%clk
0:04:47.8]} 7. Qb3 {[%clk 0:04:38.1]} 7... Bxc3+ {[%clk 0:04:43.6]} 8. bxc3
{[%clk 0:04:33.1]} 8... O-O {[%clk 0:04:37.8]} 9. e5 {[%clk 0:04:29.5]} 9... Na5
{[%clk 0:04:36.1]} 10. Qa4 {[%clk 0:04:20.9]} 10... Nxc4 {[%clk 0:04:34.2]} 11.
Qxc4 {[%clk 0:04:19.6]} 11... Ne8 {[%clk 0:04:17.7]} 12. O-O {[%clk 0:04:15.8]}
12... b6 {[%clk 0:04:15.8]} 13. Qe4 {[%clk 0:04:08.8]} 13... Rb8 {[%clk
0:04:12.3]} 14. Ng5 {[%clk 0:04:05.3]} 14... Bb7 {[%clk 0:04:09.6]} 15. Qxh7#
{[%clk 0:04:02.4]} 1-0

[Event "Live Chess"]
[Site "Chess.com"]
[Date "2023.05.20"]
[Round "-"]
[White "yarek"]
[Black "raminguy"]
[Result "1-0"]
[WhiteElo "1904"]
[BlackElo "1967"]
[TimeControl "300"]
[EndTime "13:02:16 PDT"]
[Termination "yarek won on time"]

1. e4 {[%clk 0:04:56.8]} 1... e5 {[%clk 0:04:58.4]} 2. Nf3 {[%clk 0:04:54.4]}
2... Nc6 {[%clk 0:04:57.6]} 3. Bc4 {[%clk 0:04:52.4]} 3... Bc5 {[%clk
0:04:56.9]} 4. c3 {[%clk 0:04:50.5]} 4... Nf6 {[%clk 0:04:56.3]} 5. d4 {[%clk
0:04:48.8]} 5... exd4 {[%clk 0:04:56.2]} 6. e5 {[%clk 0:04:47.3]} 6... d5 {[%clk
0:04:55.3]} 7. Bb5 {[%clk 0:04:45.2]} 7... Ne4 {[%clk 0:04:54.3]} 8. cxd4 {[%clk
0:04:41.7]} 8... Bb4+ {[%clk 0:04:53.8]} 9. Bd2 {[%clk 0:04:39]} 9... Nxd2
{[%clk 0:04:52.7]} 10. Nbxd2 {[%clk 0:04:37.6]} 10... O-O {[%clk 0:04:50.8]} 11.
O-O {[%clk 0:04:32.8]} 11... Bg4 {[%clk 0:04:47.4]} 12. h3 {[%clk 0:04:28.6]}
12... Bxd2 {[%clk 0:04:43.8]} 13. Bxc6 {[%clk 0:04:07]} 13... Bxf3 {[%clk
0:04:24.7]} 14. Qxd2 {[%clk 0:03:49.4]} 14... Bxg2 {[%clk 0:03:58.3]} 15. Bxb7
{[%clk 0:03:22.7]} 15... Bxf1 {[%clk 0:03:25.5]} 16. Bxa8 {[%clk 0:03:18.2]}
16... Bxh3 {[%clk 0:03:22.9]} 17. Bc6 {[%clk 0:02:54.5]} 17... Qh4 {[%clk
0:03:20.5]} 18. Bxd5 {[%clk 0:02:31]} 18... Rd8 {[%clk 0:03:18.2]} 19. Bf3
{[%clk 0:02:13.6]} 19... Rxd4 {[%clk 0:03:15.7]} 20. Qe3 {[%clk 0:01:56.5]}
20... h6 {[%clk 0:02:18.6]} 21. Rc1 {[%clk 0:01:53.9]} 21... Rf4 {[%clk
0:01:42.8]} 22. Rxc7 {[%clk 0:01:49.6]} 22... Qg5+ {[%clk 0:01:36.7]} 23. Kh2
{[%clk 0:01:42.2]} 23... Be6 {[%clk 0:01:27.9]} 24. Bg2 {[%clk 0:01:26.6]} 24...
Rh4+ {[%clk 0:01:24]} 25. Kg1 {[%clk 0:01:24.3]} 25... Qg6 {[%clk 0:01:12.8]}
26. Kf1 {[%clk 0:01:14]} 26... Qb1+ {[%clk 0:00:50.9]} 27. Rc1 {[%clk
0:01:11.6]} 27... Bc4+ {[%clk 0:00:47.4]} 28. Kg1 {[%clk 0:01:06.2]} 28... Qg6
{[%clk 0:00:33.9]} 29. Qg3 {[%clk 0:00:56.7]} 29... Rg4 {[%clk 0:00:32.6]} 30.
Qf3 {[%clk 0:00:48.3]} 30... Qg5 {[%clk 0:00:25.8]} 31. Rd1 {[%clk 0:00:44]}
31... Be2 {[%clk 0:00:16.3]} 32. Rd8+ {[%clk 0:00:36.6]} 32... Kh7 {[%clk
0:00:15.1]} 33. Qh3 {[%clk 0:00:33.4]} 33... Qc1+ {[%clk 0:00:09.8]} 34. Kh2
{[%clk 0:00:31.8]} 34... Qc7 {[%clk 0:00:07.4]} 35. Rd5 {[%clk 0:00:23.6]} 35...
Qe7 {[%clk 0:00:04.2]} 36. f3 {[%clk 0:00:18.5]} 36... Rh4 {[%clk 0:00:03.5]}
37. f4 {[%clk 0:00:10.5]} 37... Rxh3+ {[%clk 0:00:02.6]} 38. Bxh3 {[%clk
0:00:10]} 38... Qe8 {[%clk 0:00:00.9]} 39. Bf5+ {[%clk 0:00:08.1]} 1-0

[Event "Live Chess"]
[Site "Chess.com"]
[Date "2023.05.20"]
[Round "-"]
[White "Horseymobile"]
[Black "JormaIbo"]
[Result "1-0"]
[WhiteElo "1202"]
[BlackElo "420"]
[TimeControl "300"]
[EndTime "13:02:16 PDT"]
[Termination "Horseymobile won on time"]

1. d4 {[%clk 0:04:59.1]} 1... d5 {[%clk 0:04:58.4]} 2. c4 {[%clk 0:04:58]} 2...
e6 {[%clk 0:04:57]} 3. Nc3 {[%clk 0:04:55.6]} 3... Nf6 {[%clk 0:04:50]} 4. Nf3
{[%clk 0:04:40.1]} 4... c5 {[%clk 0:04:46.7]} 5. Bg5 {[%clk 0:04:27.6]} 5... h6
{[%clk 0:04:35.8]} 6. Bxf6 {[%clk 0:04:23.2]} 6... Qxf6 {[%clk 0:04:33.9]} 7.
cxd5 {[%clk 0:04:19.9]} 7... cxd4 {[%clk 0:04:23.7]} 8. Nxd4 {[%clk 0:04:14.9]}
8... exd5 {[%clk 0:04:17.1]} 9. Nxd5 {[%clk 0:04:12.9]} 9... Qe5 {[%clk
0:04:05.2]} 10. e4 {[%clk 0:03:53.5]} 10... Qxe4+ {[%clk 0:03:59.8]} 11. Ne3
{[%clk 0:03:50.8]} 11... Bb4+ {[%clk 0:03:54.6]} 12. Ke2 {[%clk 0:03:48]} 12...
Bg4+ {[%clk 0:03:47.4]} 13. f3 {[%clk 0:03:46.3]} 13... Bxf3+ {[%clk 0:03:19.3]}
14. gxf3 {[%clk 0:03:44.3]} 14... Qh4 {[%clk 0:02:48.9]} 15. Qa4+ {[%clk
0:03:37.8]} 15... Nd7 {[%clk 0:02:42.8]} 16. Qxb4 {[%clk 0:03:32.5]} 16... Rb8
{[%clk 0:02:24.8]} 17. Nd5 {[%clk 0:03:23]} 17... Qg5 {[%clk 0:01:40.8]} 18.
Nc7+ {[%clk 0:03:06.5]} 18... Kd8 {[%clk 0:01:34.8]} 19. Nde6+ {[%clk
0:03:00.3]} 19... fxe6 {[%clk 0:01:32.2]} 20. Nxe6+ {[%clk 0:02:58.6]} 20... Ke8
{[%clk 0:01:23.5]} 21. Nxg5 {[%clk 0:02:54.3]} 21... hxg5 {[%clk 0:01:23.4]} 22.
Qe4+ {[%clk 0:02:50.9]} 22... Kd8 {[%clk 0:01:21]} 23. Rd1 {[%clk 0:02:49]}
23... Re8 {[%clk 0:01:18]} 24. Qxe8+ {[%clk 0:02:37.1]} 24... Kxe8 {[%clk
0:01:17.3]} 25. Bh3 {[%clk 0:02:35.8]} 25... Ne5 {[%clk 0:00:58.5]} 26. Rhe1
{[%clk 0:02:12.7]} 26... Ng6 {[%clk 0:00:52.5]} 27. Kf2+ {[%clk 0:02:10.2]}
27... Kf8 {[%clk 0:00:52.1]} 28. Re6 {[%clk 0:02:02.8]} 28... Nf4 {[%clk
0:00:49]} 29. Bg4 {[%clk 0:01:51.8]} 29... Nxe6 {[%clk 0:00:46.3]} 30. Bxe6
{[%clk 0:01:51.7]} 30... Re8 {[%clk 0:00:45.3]} 31. Bd5 {[%clk 0:01:41.4]} 31...
Rd8 {[%clk 0:00:41.2]} 32. Rd3 {[%clk 0:01:32.2]} 32... b6 {[%clk 0:00:38.8]}
33. Be4 {[%clk 0:01:30]} 33... Re8 {[%clk 0:00:32.6]} 34. Rd7 {[%clk 0:01:25.9]}
34... a5 {[%clk 0:00:26.5]} 35. Rb7 {[%clk 0:01:23.8]} 35... Re6 {[%clk
0:00:23.3]} 36. Rb8+ {[%clk 0:01:07.8]} 36... Ke7 {[%clk 0:00:20.3]} 37. Rb7+
{[%clk 0:01:06.5]} 37... Kf6 {[%clk 0:00:19.1]} 38. Bd5 {[%clk 0:01:02.1]} 38...
Rd6 {[%clk 0:00:15.4]} 39. Bb3 {[%clk 0:01:00.6]} 39... a4 {[%clk 0:00:12.4]}
40. Bxa4 {[%clk 0:00:58.9]} 40... Rd2+ {[%clk 0:00:10.6]} 41. Ke3 {[%clk
0:00:56.8]} 41... Rxb2 {[%clk 0:00:10]} 42. Bb3 {[%clk 0:00:55.5]} 42... Rxb3+
{[%clk 0:00:08.6]} 43. axb3 {[%clk 0:00:54.1]} 43... Ke5 {[%clk 0:00:04.3]} 44.
Rxb6 {[%clk 0:00:53.5]} 44... Kf5 {[%clk 0:00:00.2]} 45. Rb7 {[%clk 0:00:52.5]}
1-0